fUST/lending_fUST_20250627
["ID","MTS","AMOUNT","RATE_DAILY","PERIOD"]
[368007399,1750991448949,-460.0,0.0002,2]
[368007400,1750991448959,-460.0,0.0002,2]
[368007402,1750991448970,-460.0,0.0002,2]
[368007405,1750991448980,-465.28147782,0.0002,2]
[368007406,1750991448990,-389.28401703,0.0002,2]
[368007409,1750991449001,-460.0,0.0002,2]
[368007411,1750991449011,-238.82,0.0002,2]
[368007412,1750991449021,-460.0,0.0002,2]
[368007413,1750991449031,-460.0,0.0002,2]
[368007414,1750991449041,-460.0,0.0002,2]
[368007415,1750991449050,-460.0,0.0002,2]
[368007416,1750991449060,-460.0,0.0002,2]
[368007417,1750991449070,-512.22,0.0002,2]
[368007418,1750991449079,-460.0,0.0002,2]
[368007420,1750991449089,-460.0,0.0002,2]
[368007422,1750991449099,-460.0,0.0002,2]
[368007424,1750991449109,-478.43493434,0.0002,2]
[368007426,1750991449119,-460.0,0.0002,2]
[368007428,1750991449130,-460.0,0.0002,2]
[368007430,1750991449140,-468.16851035,0.0002,2]
[368007432,1750991449150,-460.0,0.0002,2]
[368007435,1750991449162,-460.0,0.0002,2]
[368007436,1750991449171,-460.0,0.0002,2]
[368007439,1750991449182,-548.91,0.0002,2]
[368007441,1750991449192,-460.0,0.0002,2]
[368007443,1750991449202,-460.0,0.0002,2]
[368007445,1750991449211,-460.0,0.0002,2]
[368007447,1750991449220,-460.0,0.0002,2]
[368007449,1750991449230,-460.0,0.0002,2]
[368007451,1750991449239,-460.0,0.0002,2]
[368007453,1750991449249,-460.0,0.0002,2]
[368007455,1750991449258,-460.0,0.0002,2]
[368007457,1750991449268,-460.0,0.0002,2]
[368007459,1750991449277,-460.0,0.0002,2]
[368007461,1750991449286,-582.23,0.0002,2]
[368007463,1750991449296,-460.0,0.0002,2]
[368007465,1750991449305,-460.0,0.0002,2]
[368007467,1750991449315,-460.0,0.0002,2]
[368007469,1750991449325,-460.0,0.0002,2]
[368007471,1750991449335,-460.0,0.0002,2]
[368007473,1750991449344,-460.0,0.0002,2]
[368007475,1750991449354,-460.0,0.0002,2]
[368007477,1750991449363,-460.0,0.0002,2]
[368007479,1750991449373,-460.0,0.0002,2]
[368007481,1750991449383,-1572.33,0.0002,2]
[368007483,1750991449395,-668.56,0.0002,2]
[368007485,1750991449404,-460.0,0.0002,2]
[368007487,1750991449413,-682.7,0.0002,2]
[368007489,1750991449423,-460.0,0.0002,2]
[368007491,1750991449432,-1579.32,0.0002,2]
[368007493,1750991449442,-460.0,0.0002,2]
[368007495,1750991449451,-478.14,0.0002,2]
[368007497,1750991449461,-609.1211868,0.0002,2]
[368007499,1750991449471,-634.66,0.0002,2]
[368007501,1750991449481,-460.0,0.0002,2]
[368007503,1750991449493,-3238.07,0.0002,2]
[368007505,1750991449503,-476.92,0.0002,2]
[368007507,1750991449512,-460.0,0.0002,2]
[368007509,1750991449523,-460.0,0.0002,2]
[368007511,1750991449532,-460.0,0.0002,2]
[368007513,1750991449542,-460.0,0.0002,2]
[368007515,1750991449552,-460.0,0.0002,2]
[368007517,1750991449561,-460.0,0.0002,2]
[368007519,1750991449571,-1404.89,0.0002,2]
[368007521,1750991449581,-727.02,0.0002,2]
[368007524,1750991449590,-460.0,0.0002,2]
[368007525,1750991449600,-460.0,0.0002,2]
[368007528,1750991449609,-604.05,0.0002,2]
[368007530,1750991449619,-469.05,0.0002,2]
[368007532,1750991449629,-460.0,0.0002,2]
[368007534,1750991449638,-460.0,0.0002,2]
[368007536,1750991449649,-1490.54,0.0002,2]
[368007538,1750991449659,-789.6,0.0002,2]
[368007540,1750991449668,-1114.49,0.0002,2]
[368007542,1750991449678,-460.0,0.0002,2]
[368007544,1750991449687,-460.0,0.0002,2]
[368007546,1750991449697,-460.0,0.0002,2]
[368007548,1750991449706,-1064.01,0.0002,2]
[368007550,1750991449716,-2103.41,0.0002,2]
[368007552,1750991449725,-516.23,0.0002,2]
[368007554,1750991449735,-1368.96,0.0002,2]
[368007556,1750991449745,-460.0,0.0002,2]
[368007558,1750991449755,-460.0,0.0002,2]
[368007560,1750991449765,-460.0,0.0002,2]
[368007562,1750991449775,-513.72,0.0002,2]
[368007564,1750991449786,-489.67,0.0002,2]
[368007566,1750991449796,-460.0,0.0002,2]
[368007568,1750991449805,-150.10111486,0.0002,7]
[368007570,1750991449815,-862.43,0.0002,2]
[368007572,1750991449825,-1250.61,0.0002,2]
[368007574,1750991449834,-460.0,0.0002,2]
[368007576,1750991449844,-460.0,0.0002,2]
[368007579,1750991449853,-775.3,0.0002,2]
[368007581,1750991449864,-460.0,0.0002,2]
[368007583,1750991449874,-460.0,0.0002,2]
[368007585,1750991449885,-3062.62,0.0002,2]
[368007587,1750991449895,-460.0,0.0002,2]
[368007589,1750991449904,-460.0,0.0002,2]
[368007591,1750991449914,-901.11,0.0002,2]
[368007593,1750991449924,-460.0,0.0002,2]
[368007595,1750991449934,-2329.81,0.0002,2]
[368007596,1750991449943,-669.95,0.0002,2]
[368007599,1750991449953,-460.0,0.0002,2]
[368007601,1750991449963,-939.51,0.0002,2]
[368007603,1750991449973,-460.0,0.0002,2]
[368007605,1750991449982,-460.0,0.0002,2]
[368007607,1750991449992,-576.42,0.0002,2]
[368007609,1750991450001,-460.0,0.0002,2]
[368007611,1750991450011,-819.76,0.0002,2]
[368007613,1750991450020,-2723.49,0.0002,2]
[368007615,1750991450030,-460.0,0.0002,2]
[368007617,1750991450040,-663.07,0.0002,2]
[368007619,1750991450050,-1098.03,0.0002,2]
[368007621,1750991450060,-460.0,0.0002,2]
[368007623,1750991450069,-460.0,0.0002,2]
[368007625,1750991450079,-460.0,0.0002,2]
[368007627,1750991450089,-1765.88,0.0002,2]
[368007629,1750991450098,-460.0,0.0002,2]
[368007631,1750991450108,-878.55,0.0002,2]
[368007633,1750991450117,-460.0,0.0002,2]
[368007635,1750991450127,-466.96,0.0002,2]
[368007637,1750991450137,-460.0,0.0002,2]
[368007639,1750991450146,-833.07,0.0002,2]
[368007642,1750991450156,-460.0,0.0002,2]
[368007644,1750991450166,-1449.67,0.0002,2]
[368007646,1750991450175,-700.91,0.0002,2]
[368007648,1750991450185,-460.0,0.0002,2]
[368007650,1750991450195,-460.0,0.0002,2]
[368007652,1750991450204,-4827.49112517,0.00020107,2]
[368007654,1750991450214,-25065.21164,0.00020272,2]
[368007656,1750991450224,-460.0,0.00020273,2]
[368007658,1750991450234,-460.0,0.00020273,2]
[368007660,1750991450243,-460.0,0.00020273,2]
[368007662,1750991450253,-460.0,0.00020273,2]
[368007664,1750991450264,-460.0,0.00020273,2]
[368007666,1750991450274,-460.0,0.00020273,2]
[368007682,1750991450415,-460.0,0.00020273,2]
[368007684,1750991450426,-460.0,0.00020273,2]
[368007686,1750991450435,-460.0,0.00020273,2]
[368007688,1750991450444,-512.22,0.00020273,2]
[368007690,1750991450453,-460.0,0.00020273,2]
[368007692,1750991450462,-460.0,0.00020273,2]
[368007694,1750991450472,-460.0,0.00020273,2]
[368007696,1750991450482,-460.0,0.00020273,2]
[368007698,1750991450495,-460.0,0.00020273,2]
[368007700,1750991450506,-460.0,0.00020273,2]
[368007702,1750991450515,-548.91,0.00020273,2]
[368007704,1750991450524,-460.0,0.00020273,2]
[368007706,1750991450535,-261.12962635,0.00020273,2]
[368007708,1750991450544,-460.0,0.00020273,2]
[368007710,1750991450554,-460.0,0.00020273,2]
[368007712,1750991450564,-460.0,0.00020273,2]
[368007714,1750991450573,-460.0,0.00020273,2]
[368007716,1750991450583,-460.0,0.00020273,2]
[368007718,1750991450592,-460.0,0.00020273,2]
[368007720,1750991450602,-582.23,0.00020273,2]
[368007722,1750991450611,-460.0,0.00020273,2]
[368007724,1750991450620,-460.0,0.00020273,2]
[368007726,1750991450629,-460.0,0.00020273,2]
[368007728,1750991450638,-460.0,0.00020273,2]
[368007730,1750991450647,-460.0,0.00020273,2]
[368007732,1750991450657,-460.0,0.00020273,2]
[368007734,1750991450666,-460.0,0.00020273,2]
[368007736,1750991450676,-460.0,0.00020273,2]
[368007738,1750991450685,-460.0,0.00020273,2]
[368007740,1750991450694,-1572.33,0.00020273,2]
[368007742,1750991450703,-668.56,0.00020273,2]
[368007744,1750991450713,-460.0,0.00020273,2]
[368007746,1750991450722,-682.7,0.00020273,2]
[368007748,1750991450731,-460.0,0.00020273,2]
[368007750,1750991450741,-1579.32,0.00020273,2]
[368007752,1750991450750,-460.0,0.00020273,2]
[368007754,1750991450759,-478.14,0.00020273,2]
[368007756,1750991450769,-634.66,0.00020273,2]
[368007758,1750991450778,-460.0,0.00020273,2]
[368007760,1750991450787,-3238.07,0.00020273,2]
[368007762,1750991450796,-476.92,0.00020273,2]
[368007764,1750991450807,-460.0,0.00020273,2]
[368007766,1750991450816,-460.0,0.00020273,2]
[368007768,1750991450825,-460.0,0.00020273,2]
[368007770,1750991450834,-460.0,0.00020273,2]
[368007772,1750991450843,-460.0,0.00020273,2]
[368007774,1750991450852,-460.0,0.00020273,2]
[368007776,1750991450862,-1404.89,0.00020273,2]
[368007778,1750991450871,-727.02,0.00020273,2]
[368007780,1750991450880,-460.0,0.00020273,2]
[368007782,1750991450890,-460.0,0.00020273,2]
[368007785,1750991450900,-604.05,0.00020273,2]
[368007787,1750991450910,-469.05,0.00020273,2]
[368007789,1750991450919,-460.0,0.00020273,2]
[368007790,1750991450928,-460.0,0.00020273,2]
[368007793,1750991450938,-1490.54,0.00020273,2]
[368007795,1750991450947,-789.6,0.00020273,2]
[368007797,1750991450956,-1114.49,0.00020273,2]
[368007798,1750991450966,-460.0,0.00020273,2]
[368007801,1750991450975,-460.0,0.00020273,2]
[368007803,1750991450985,-460.0,0.00020273,2]
[368007805,1750991450995,-1064.01,0.00020273,2]
[368007807,1750991451004,-2103.41,0.00020273,2]
[368007809,1750991451013,-516.23,0.00020273,2]
[368007811,1750991451022,-1168.49541214,0.00020273,2]
[368007871,1750991451597,-120.09303218,0.00019178,2]
[368008029,1750991453152,-90.039554,0.00019178,2]
[368014015,1750991647443,1100.0,0.00023,30]
[368014019,1750992194225,438.74584966,0.00016767,2]
[368014020,1750992195067,438.74584966,0.00017114,2]
[368014021,1750992195378,438.74584966,0.00017277,2]
[368014022,1750992195694,438.74584966,0.00017566,2]
[368014023,1750992195998,438.74584966,0.00017832,2]
[368014024,1750992319681,2583.5468285,0.00013537,2]
[368014025,1750992320484,2583.5468285,0.00013886,2]
[368014026,1750992321036,2583.5468285,0.00013992,2]
[368014027,1750992321351,2583.5468285,0.00014475,2]
[368014028,1750992321663,2583.5468285,0.00014703,2]
[368014029,1750992321970,2583.5468285,0.00014864,2]
[368014030,1750992322270,2583.5468285,0.00015183,2]
[368014031,1750992322754,2583.5468285,0.00015458,2]
[368014032,1750992323050,2583.5468285,0.0001589,2]
[368014033,1750992323365,2583.5468285,0.00015964,2]
[368014034,1750992323974,2583.5468285,0.00016246,2]
[368014035,1750992324597,2583.5468285,0.00016694,2]
[368014036,1750992325438,2583.5468285,0.00016896,2]
[368014037,1750992325787,2583.5468285,0.00017073,2]
[368014038,1750992326135,2583.5468285,0.00017449,2]
[368014039,1750992326937,2583.5468285,0.0001774,2]
[368014040,1750992327300,2583.5468285,0.00017987,2]
[368014041,1750992446353,2583.54682851,0.00016403,2]
[368014042,1750992446661,2583.54682851,0.00016471,2]
[368014043,1750992446981,2583.54682851,0.0001688,2]
[368014044,1750992447325,2583.54682851,0.00017062,2]
[368014045,1750992447622,2583.54682851,0.00017359,2]
[368014046,1750992447955,2583.54682851,0.00017769,2]
[368014047,1750992448289,2583.54682851,0.00017964,2]
[368014048,1750992454982,-530.03823081,0.00018248,2]
[368014049,1750992567099,-2053.5085977,0.00018248,2]
[368014050,1750992567122,-1250.34842527,0.00018397,2]
[368014051,1750992569952,2509.99692114,0.00017796,2]
[368014052,1750992570177,2509.99692114,0.00017901,2]
[368014053,1750992572101,-493.92,0.00018216,2]
[368014054,1750992574094,-780.08,0.00018216,2]
[368014063,1750992632125,-1235.99692114,0.00018216,2]
[368014064,1750992632136,-2509.99692114,0.00018496,2]
[368014065,1750992632146,-2509.99692114,0.00018746,2]
[368014066,1750992632156,-800.51499561,0.00019077,2]
[368014067,1750992632166,-1165.0,0.0001912,2]
[368014068,1750992632177,-1200.0,0.00019121,2]
[368014069,1750992632187,-300.0,0.00019173,2]
[368014070,1750992632197,-2509.99692114,0.00019174,2]
[368014071,1750992632208,-500.0,0.00019177,2]
[368014072,1750992632217,-500.0,0.00019177,2]
[368014073,1750992632227,-500.0,0.00019177,2]
[368014074,1750992632237,-500.0,0.00019177,2]
[368014075,1750992632246,-500.0,0.00019177,2]
[368014076,1750992632255,-500.0,0.00019177,2]
[368014077,1750992632264,-500.0,0.00019177,2]
[368014078,1750992632273,-500.0,0.00019177,2]
[368014079,1750992632282,-500.0,0.00019177,2]
[368014080,1750992632292,-500.0,0.00019177,2]
[368014081,1750992632301,-191.57685191,0.00019177,2]
[368014082,1750992632310,-500.0,0.00019177,2]
[368014083,1750992632319,-500.0,0.00019177,2]
[368014084,1750992632329,-500.0,0.00019177,2]
[368014085,1750992632338,-500.0,0.00019177,2]
[368014086,1750992632347,-500.0,0.00019177,2]
[368014087,1750992632356,-500.0,0.00019177,2]
[368014088,1750992632367,-500.0,0.00019177,2]
[368014089,1750992632376,-500.0,0.00019177,2]
[368014090,1750992632385,-500.0,0.00019177,2]
[368014091,1750992632395,-476.3994034,0.00019177,2]
[368014092,1750992632404,-500.0,0.00019177,2]
[368014093,1750992632413,-416.52103966,0.00019177,2]
[368014094,1750992632422,-171.47065715,0.00019177,2]
[368014095,1750992632432,-500.0,0.00019177,2]
[368014096,1750992632442,-500.0,0.00019177,2]
[368014097,1750992632451,-500.0,0.00019177,2]
[368014098,1750992632461,-500.0,0.00019177,2]
[368014099,1750992632470,-500.0,0.00019177,2]
[368014100,1750992632479,-500.0,0.00019177,2]
[368014101,1750992632489,-500.0,0.00019177,2]
[368014102,1750992632498,-500.0,0.00019177,2]
[368014103,1750992632507,-500.0,0.00019177,2]
[368014104,1750992632516,-500.0,0.00019177,2]
[368014105,1750992632525,-500.0,0.00019177,2]
[368014106,1750992632534,-500.0,0.00019177,2]
[368014107,1750992632543,-500.0,0.00019177,2]
[368014108,1750992632552,-500.0,0.00019177,2]
[368014109,1750992632562,-500.0,0.00019177,2]
[368014110,1750992632571,-500.0,0.00019177,2]
[368014111,1750992632580,-500.0,0.00019177,2]
[368014112,1750992632589,-500.0,0.00019177,2]
[368014113,1750992632598,-500.0,0.00019177,2]
[368014114,1750992632607,-500.0,0.00019177,2]
[368014115,1750992632616,-500.0,0.00019177,2]
[368014116,1750992632625,-500.0,0.00019177,2]
[368014117,1750992632635,-500.0,0.00019177,2]
[368014118,1750992632644,-500.0,0.00019177,2]
[368014119,1750992632653,-500.0,0.00019177,2]
[368014120,1750992632662,-500.0,0.00019177,2]
[368014121,1750992632671,-170.0,0.00019177,2]
[368014122,1750992632680,-500.0,0.00019177,2]
[368014123,1750992632690,-500.0,0.00019177,2]
[368014124,1750992632699,-500.0,0.00019177,2]
[368014125,1750992632708,-511.61033875,0.00019177,2]
[368014126,1750992632717,-500.0,0.00019177,2]
[368014127,1750992632726,-500.0,0.00019177,2]
[368014128,1750992632735,-500.0,0.00019177,2]
[368014129,1750992632744,-500.0,0.00019177,2]
[368014130,1750992632753,-500.0,0.00019177,2]
[368014131,1750992632762,-500.0,0.00019177,2]
[368014132,1750992632773,-500.0,0.00019177,2]
[368014133,1750992632782,-500.0,0.00019177,2]
[368014134,1750992632791,-500.0,0.00019177,2]
[368014135,1750992632801,-500.0,0.00019177,2]
[368014136,1750992632809,-500.0,0.00019177,2]
[368014137,1750992632818,-500.0,0.00019177,2]
[368014138,1750992632828,-460.0,0.00019178,2]
[368014139,1750992632836,-401.74229238,0.00019178,2]
[368014140,1750992632844,-460.0,0.00019178,2]
[368014141,1750992632853,-460.0,0.00019178,2]
[368014142,1750992632863,-369.83505276,0.00019178,2]
[368014143,1750992632872,-265.37885881,0.00019178,2]
[368014144,1750992632881,-460.0,0.00019178,2]
[368014145,1750992632890,-460.0,0.00019178,2]
[368014146,1750992632899,-460.0,0.00019178,2]
[368014147,1750992632908,-460.0,0.00019178,2]
[368014148,1750992632918,-460.0,0.00019178,2]
[368014149,1750992632928,-466.70898963,0.00019178,2]
[368014150,1750992632939,-460.0,0.00019178,2]
[368014151,1750992632948,-460.0,0.00019178,2]
[368014152,1750992632958,-460.0,0.00019178,2]
[368014153,1750992632968,-460.0,0.00019178,2]
[368014154,1750992632978,-460.0,0.00019178,2]
[368014155,1750992632987,-460.29410199,0.00019178,2]
[368014156,1750992632996,-460.0,0.00019178,2]
[368014157,1750992633004,-260.95779564,0.00019178,2]
[368014163,1750992637905,-199.04220436,0.00019178,2]
[368014164,1750992637914,-460.0,0.00019178,2]
[368014165,1750992637924,-374.54312935,0.00019178,2]
[368014166,1750992637935,-87.5139966,0.00019178,2]
[368014167,1750992637948,-460.0,0.00019178,2]
[368014168,1750992637957,-374.11644082,0.00019178,2]
[368014169,1750992637966,-92.04865797,0.00019178,2]
[368014170,1750992637978,-368.85246567,0.00019178,2]
[368014171,1750992637989,-237.12378547,0.00019178,2]
[368014172,1750992637998,-460.0,0.00019178,2]
[368014173,1750992638008,-460.0,0.00019178,2]
[368014174,1750992638019,-460.0,0.00019178,2]
[368014175,1750992638029,-460.0,0.00019178,2]
[368014176,1750992638038,-460.0,0.00019178,2]
[368014177,1750992638047,-460.0,0.00019178,2]
[368014178,1750992638057,-460.0,0.00019178,2]
[368014179,1750992638066,-460.93,0.00019178,2]
[368014180,1750992638075,-460.0,0.00019178,2]
[368014181,1750992638085,-460.0,0.00019178,2]
[368014182,1750992638094,-460.0,0.00019178,2]
[368014183,1750992638103,-460.0,0.00019178,2]
[368014184,1750992638112,-460.0,0.00019178,2]
[368014185,1750992638121,-528.37,0.00019178,2]
[368014186,1750992638131,-460.0,0.00019178,2]
[368014187,1750992638140,-460.0,0.00019178,2]
[368014188,1750992638149,-460.0,0.00019178,2]
[368014189,1750992638158,-608.14896648,0.00019178,2]
[368014190,1750992638168,-460.0,0.00019178,2]
[368014191,1750992638177,-460.0,0.00019178,2]
[368014192,1750992638186,-500.0,0.00019178,2]
[368014193,1750992638195,-460.0,0.00019178,2]
[368014194,1750992638205,-1525.91,0.00019178,2]
[368014195,1750992638214,-460.0,0.00019178,2]
[368014196,1750992638224,-460.0,0.00019178,2]
[368014197,1750992638233,-460.0,0.00019178,2]
[368014198,1750992638243,-460.0,0.00019178,2]
[368014199,1750992638252,-460.0,0.00019178,2]
[368014200,1750992638261,-253.2542128,0.00019178,2]
[368014201,1750992638271,-391.88112063,0.00019178,2]
[368014202,1750992638280,-460.0,0.00019178,2]
[368014203,1750992638488,-446.65892469,0.00019178,2]
[368014204,1750992638518,-13.34107531,0.00019178,2]
[368014205,1750992638528,-460.0,0.00019178,2]
[368014206,1750992638537,-427.42489786,0.00019178,2]
[368014207,1750992638549,-55.95510214,0.00019178,2]
[368014208,1750992638558,-460.0,0.00019178,2]
[368014209,1750992638568,-611.78,0.00019178,2]
[368014210,1750992638578,-460.0,0.00019178,2]
[368014211,1750992638587,-460.0,0.00019178,2]
[368014212,1750992638597,-460.0,0.00019178,2]
[368014213,1750992638606,-195.00759872,0.00019178,2]
[368014214,1750992638616,-460.0,0.00019178,2]
[368014215,1750992638625,-460.0,0.00019178,2]
[368014216,1750992638635,-460.0,0.00019178,2]
[368014217,1750992638645,-603.23,0.00019178,2]
[368014218,1750992638655,-460.0,0.00019178,2]
[368014219,1750992638664,-460.0,0.00019178,2]
[368014220,1750992638673,-455.56536509,0.00019178,2]
[368014221,1750992638684,-447.87366096,0.00019178,2]
[368014222,1750992638694,-460.0,0.00019178,2]
[368014223,1750992638703,-460.0,0.00019178,2]
[368014224,1750992638712,-460.0,0.00019178,2]
[368014225,1750992638722,-538.28,0.00019178,2]
[368014226,1750992638731,-460.0,0.00019178,2]
[368014227,1750992638741,-460.0,0.00019178,2]
[368014228,1750992638750,-460.0,0.00019178,2]
[368014229,1750992638760,-460.0,0.00019178,2]
[368014230,1750992638770,-466.03,0.00019178,2]
[368014231,1750992638780,-898.55,0.00019178,2]
[368014232,1750992638789,-460.0,0.00019178,2]
[368014233,1750992638799,-460.0,0.00019178,2]
[368014234,1750992638811,-788.31,0.00019178,2]
[368014235,1750992638822,-460.0,0.00019178,2]
[368014236,1750992638833,-460.0,0.00019178,2]
[368014237,1750992638842,-491.85,0.00019178,2]
[368014238,1750992638853,-460.0,0.00019178,2]
[368014239,1750992638863,-467.77,0.00019178,2]
[368014240,1750992638873,-460.0,0.00019178,2]
[368014241,1750992638883,-460.0,0.00019178,2]
[368014242,1750992638893,-460.0,0.00019178,2]
[368014243,1750992638903,-460.0,0.00019178,2]
[368014244,1750992638915,-1701.67,0.00019178,2]
[368014245,1750992638925,-460.0,0.00019178,2]
[368014246,1750992638935,-463.73,0.00019178,2]
[368014247,1750992638948,-460.0,0.00019178,2]
[368014248,1750992638957,-460.92176475,0.00019178,2]
[368014249,1750992638967,-430.0,0.00019178,2]
[368014250,1750992638976,-460.0,0.00019178,2]
[368014251,1750992638986,-460.0,0.00019178,2]
[368014252,1750992638996,-460.0,0.00019178,2]
[368014253,1750992639005,-460.0,0.00019178,2]
[368014254,1750992639016,-460.0,0.00019178,2]
[368014255,1750992639026,-460.0,0.00019178,2]
[368014256,1750992639036,-646.08,0.00019178,2]
[368014257,1750992639045,-1567.66,0.00019178,2]
[368014258,1750992639058,-433.91934456,0.00019178,2]
[368014259,1750992639067,-512.45,0.00019178,2]
[368014260,1750992639076,-460.0,0.00019178,2]
[368014261,1750992639086,-460.0,0.00019178,2]
[368014262,1750992639096,-623.55,0.00019178,2]
[368014263,1750992639105,-460.0,0.00019178,2]
[368014264,1750992639115,-475.95243404,0.00019178,2]
[368014265,1750992639125,-1065.26,0.00019178,2]
[368014266,1750992639135,-694.22,0.00019178,2]
[368014267,1750992639144,-460.0,0.00019178,2]
[368014268,1750992639153,-460.0,0.00019178,2]
[368014269,1750992639163,-460.0,0.00019178,2]
[368014270,1750992639172,-460.0,0.00019178,2]
[368014271,1750992639182,-1140.48,0.00019178,2]
[368014272,1750992639192,-828.68,0.00019178,2]
[368014273,1750992639201,-460.0,0.00019178,2]
[368014274,1750992639210,-460.0,0.00019178,2]
[368014275,1750992639220,-460.0,0.00019178,2]
[368014276,1750992639229,-2948.54,0.00019178,2]
[368014277,1750992639239,-592.33,0.00019178,2]
[368014278,1750992639249,-2346.24,0.00019178,2]
[368014279,1750992639258,-460.0,0.00019178,2]
[368014280,1750992639269,-460.0,0.00019178,2]
[368014281,1750992639278,-782.93,0.00019178,2]
[368014282,1750992639287,-460.0,0.00019178,2]
[368014283,1750992639297,-2197.17,0.00019178,2]
[368014284,1750992639307,-460.0,0.00019178,2]
[368014285,1750992639316,-460.0,0.00019178,2]
[368014286,1750992639326,-2243.13,0.00019178,2]
[368014287,1750992639336,-460.0,0.00019178,2]
[368014288,1750992639345,-683.13,0.00019178,2]
[368014289,1750992639355,-723.81,0.00019178,2]
[368014290,1750992639365,-460.0,0.00019178,2]
[368014291,1750992639375,-668.79,0.00019178,2]
[368014292,1750992639386,-460.0,0.00019178,2]
[368014293,1750992639395,-460.0,0.00019178,2]
[368014294,1750992639405,-460.0,0.00019178,2]
[368014295,1750992639415,-500.0,0.00019178,2]
[368014296,1750992639424,-460.0,0.00019178,2]
[368014297,1750992639434,-554.93,0.00019178,2]
[368014298,1750992639443,-460.0,0.00019178,2]
[368014299,1750992639453,-460.0,0.00019178,2]
[368014300,1750992639462,-1129.62,0.00019178,2]
[368014301,1750992639472,-448.74980157,0.00019178,2]
[368014302,1750992639481,-460.0,0.00019178,2]
[368014303,1750992639490,-694.15,0.00019178,2]
[368014304,1750992639500,-460.0,0.00019178,2]
[368014306,1750992639511,-460.0,0.00019178,2]
[368014308,1750992639521,-460.0,0.00019178,2]
[368014310,1750992639531,-1585.56,0.00019178,2]
[368014312,1750992639541,-460.0,0.00019178,2]
[368014313,1750992639550,-483.56,0.00019178,2]
[368014314,1750992639559,-460.0,0.00019178,2]
[368014315,1750992639569,-460.0,0.00019178,2]
[368014316,1750992639579,-460.0,0.00019178,2]
[368014317,1750992639588,-1284.93,0.00019178,2]
[368014318,1750992639598,-460.0,0.00019178,2]
[368014319,1750992639607,-460.0,0.00019178,2]
[368014321,1750992639616,-1119.96,0.00019178,2]
[368014323,1750992639626,-413.55312561,0.00019178,2]
[368014325,1750992639636,-460.0,0.00019178,2]
[368014327,1750992639646,-407.44913821,0.00019178,2]
[368014329,1750992639655,-657.98,0.00019178,2]
[368014331,1750992639666,-460.0,0.00019178,2]
[368014333,1750992639676,-176.45819377,0.00019178,2]
[368014335,1750992639686,-851.85,0.00019178,2]
[368014337,1750992639696,-460.0,0.00019178,2]
[368014340,1750992639706,-641.74,0.00019178,2]
[368014342,1750992639716,-1048.91,0.00019178,2]
[368014344,1750992639727,-1483.26,0.00019178,2]